[Event "*** SCC Grand Prix: Titled Tuesday Blitz"]
[Site "Chess.com"]
[Date "2020.07.07"]
[Round "1"]
[White "sri5996"]
[Black "Fighter008"]
[Result "1/2-1/2"]
[WhiteElo "2290"]
[BlackElo "2605"]
[TimeControl "180+1"]
[EndTime "10:08:49 PDT"]
[Termination "Game drawn - insufficient material"]

1. d4 {[%clk 0:02:59.2]} 1... Nf6 {[%clk 0:02:58.3]} 2. Bf4 {[%clk 0:02:53.6]}
2... g6 {[%clk 0:02:55.6]} 3. Nc3 {[%clk 0:02:52.4]} 3... d5 {[%clk 0:02:50]} 4.
e3 {[%clk 0:02:52.5]} 4... Bg7 {[%clk 0:02:48.8]} 5. h4 {[%clk 0:02:44.7]} 5...
h6 {[%clk 0:02:38.3]} 6. Nf3 {[%clk 0:02:36.5]} 6... c6 {[%clk 0:02:34.8]} 7.
Ne5 {[%clk 0:02:17.5]} 7... Nbd7 {[%clk 0:02:31]} 8. Be2 {[%clk 0:02:13.6]} 8...
Nf8 {[%clk 0:02:25.1]} 9. Qd2 {[%clk 0:02:05.3]} 9... Ne6 {[%clk 0:02:19.1]} 10.
Bh2 {[%clk 0:01:56.1]} 10... Nd7 {[%clk 0:02:08.4]} 11. e4 {[%clk 0:01:28.7]}
11... Nxe5 {[%clk 0:02:02.2]} 12. dxe5 {[%clk 0:01:28]} 12... d4 {[%clk
0:02:01.1]} 13. Nd1 {[%clk 0:01:26.5]} 13... h5 {[%clk 0:01:46.2]} 14. f4 {[%clk
0:01:13.3]} 14... Nc5 {[%clk 0:01:43.5]} 15. Nf2 {[%clk 0:01:12]} 15... Ne6
{[%clk 0:01:03]} 16. O-O-O {[%clk 0:00:58.7]} 16... c5 {[%clk 0:01:00.8]} 17.
Kb1 {[%clk 0:00:54.2]} 17... Nc7 {[%clk 0:00:58.1]} 18. g4 {[%clk 0:00:30.8]}
18... hxg4 {[%clk 0:00:56.4]} 19. Bxg4 {[%clk 0:00:28.7]} 19... Bxg4 {[%clk
0:00:54.9]} 20. Nxg4 {[%clk 0:00:29.6]} 20... Qd7 {[%clk 0:00:54.2]} 21. Rdg1
{[%clk 0:00:22.6]} 21... Rxh4 {[%clk 0:00:46.3]} 22. Qd1 {[%clk 0:00:20.5]}
22... O-O-O {[%clk 0:00:44.6]} 23. Nf2 {[%clk 0:00:19]} 23... Rdh8 {[%clk
0:00:43.3]} 24. Bg3 {[%clk 0:00:18.5]} 24... R4h5 {[%clk 0:00:36.2]} 25. Rxh5
{[%clk 0:00:18]} 25... Rxh5 {[%clk 0:00:37.1]} 26. Rh1 {[%clk 0:00:18.6]} 26...
Rxh1 {[%clk 0:00:26.7]} 27. Qxh1 {[%clk 0:00:19.5]} 27... Qe8 {[%clk 0:00:24.8]}
28. Qh7 {[%clk 0:00:19.4]} 28... Qh8 {[%clk 0:00:24.5]} 29. Qxh8+ {[%clk
0:00:18.5]} 29... Bxh8 {[%clk 0:00:25.4]} 30. Kc1 {[%clk 0:00:16.1]} 30... Kd7
{[%clk 0:00:25.1]} 31. Kd2 {[%clk 0:00:15.7]} 31... Kc6 {[%clk 0:00:25.2]} 32.
b3 {[%clk 0:00:16.2]} 32... b5 {[%clk 0:00:25.5]} 33. Bh4 {[%clk 0:00:14]} 33...
f6 {[%clk 0:00:23.5]} 34. exf6 {[%clk 0:00:13.1]} 34... exf6 {[%clk 0:00:24.4]}
35. Ng4 {[%clk 0:00:13]} 35... Ne6 {[%clk 0:00:22.7]} 36. Bxf6 {[%clk
0:00:10.2]} 36... Bxf6 {[%clk 0:00:21.5]} 37. Nxf6 {[%clk 0:00:11.1]} 37... Nxf4
{[%clk 0:00:22.1]} 38. Ng4 {[%clk 0:00:10.3]} 38... Kd6 {[%clk 0:00:21.9]} 39.
c3 {[%clk 0:00:10.4]} 39... Ne6 {[%clk 0:00:20.6]} 40. Kd3 {[%clk 0:00:09.9]}
40... a5 {[%clk 0:00:20.2]} 41. cxd4 {[%clk 0:00:10]} 41... Nxd4 {[%clk
0:00:20]} 42. Ne3 {[%clk 0:00:09.9]} 42... Ke5 {[%clk 0:00:19.6]} 43. Nd1 {[%clk
0:00:08.2]} 43... g5 {[%clk 0:00:19.3]} 44. Nc3 {[%clk 0:00:08.3]} 44... g4
{[%clk 0:00:19.4]} 45. Ke3 {[%clk 0:00:07.1]} 45... Nc2+ {[%clk 0:00:19]} 46.
Kf2 {[%clk 0:00:06.6]} 46... Nd4 {[%clk 0:00:16.1]} 47. Kg3 {[%clk 0:00:06.1]}
47... b4 {[%clk 0:00:16.7]} 48. Na4 {[%clk 0:00:05.7]} 48... Ne6 {[%clk
0:00:17.4]} 49. Kxg4 {[%clk 0:00:05.6]} 49... Kxe4 {[%clk 0:00:18]} 50. Kg3
{[%clk 0:00:05.4]} 50... Kd3 {[%clk 0:00:18.1]} 51. Kg4 {[%clk 0:00:05.9]} 51...
Kc2 {[%clk 0:00:18]} 52. Kf5 {[%clk 0:00:06.6]} 52... Nd4+ {[%clk 0:00:18.2]}
53. Ke5 {[%clk 0:00:06.4]} 53... Nxb3 {[%clk 0:00:18.4]} 54. axb3 {[%clk
0:00:06.1]} 54... Kxb3 {[%clk 0:00:19.3]} 55. Nxc5+ {[%clk 0:00:07]} 55... Kc4
{[%clk 0:00:19.5]} 56. Na4 {[%clk 0:00:05.4]} 56... Kb5 {[%clk 0:00:18.9]} 57.
Nb2 {[%clk 0:00:05.5]} 57... b3 {[%clk 0:00:18.6]} 58. Kd4 {[%clk 0:00:05.8]}
58... Kb4 {[%clk 0:00:19.3]} 59. Kd3 {[%clk 0:00:04.9]} 59... a4 {[%clk
0:00:19.9]} 60. Kd2 {[%clk 0:00:05.3]} 60... a3 {[%clk 0:00:20.2]} 61. Kc1
{[%clk 0:00:05.4]} 61... Kc3 {[%clk 0:00:19.3]} 62. Nd1+ {[%clk 0:00:05]} 62...
Kd3 {[%clk 0:00:19.9]} 63. Kb1 {[%clk 0:00:05]} 63... Kd2 {[%clk 0:00:19.6]} 64.
Nf2 {[%clk 0:00:04.7]} 64... a2+ {[%clk 0:00:18]} 65. Kb2 {[%clk 0:00:04.6]}
65... Ke2 {[%clk 0:00:17.4]} 66. Ne4 {[%clk 0:00:04.7]} 66... Kd3 {[%clk
0:00:17.5]} 67. Nc5+ {[%clk 0:00:02.5]} 67... Kc4 {[%clk 0:00:18.1]} 68. Nxb3
{[%clk 0:00:03.4]} 68... a1=Q+ {[%clk 0:00:18]} 69. Nxa1 {[%clk 0:00:04.1]}
1/2-1/2

[Event "*** SCC Grand Prix: Titled Tuesday Blitz"]
[Site "Chess.com"]
[Date "2020.07.07"]
[Round "1"]
[White "swimmerchess"]
[Black "zajka-molotok"]
[Result "1-0"]
[WhiteElo "2799"]
[BlackElo "2417"]
[TimeControl "180+1"]
[EndTime "10:08:52 PDT"]
[Termination "swimmerchess won by resignation"]

1. e4 {[%clk 0:03:00.9]} 1... d6 {[%clk 0:02:57.7]} 2. d4 {[%clk 0:03:00.9]}
2... Nf6 {[%clk 0:02:57.3]} 3. Nc3 {[%clk 0:03:01.5]} 3... g6 {[%clk 0:02:57.3]}
4. f4 {[%clk 0:03:00.6]} 4... Bg7 {[%clk 0:02:57.1]} 5. Nf3 {[%clk 0:03:01.2]}
5... Nc6 {[%clk 0:02:56.6]} 6. e5 {[%clk 0:02:57.9]} 6... dxe5 {[%clk
0:02:44.1]} 7. fxe5 {[%clk 0:02:58.8]} 7... Nd5 {[%clk 0:02:43.3]} 8. Bc4 {[%clk
0:02:57.6]} 8... Be6 {[%clk 0:02:23.3]} 9. Bb3 {[%clk 0:02:56.3]} 9... Qd7
{[%clk 0:02:09.9]} 10. O-O {[%clk 0:02:53.1]} 10... O-O {[%clk 0:01:47]} 11. Ne4
{[%clk 0:02:50]} 11... Bf5 {[%clk 0:01:30.2]} 12. Nc5 {[%clk 0:02:48.6]} 12...
Qd8 {[%clk 0:01:22.5]} 13. Nxb7 {[%clk 0:02:48.7]} 13... Qb8 {[%clk 0:01:22.2]}
14. Bxd5 {[%clk 0:02:41.9]} 14... Qxb7 {[%clk 0:01:21.9]} 15. Nh4 {[%clk
0:02:09.1]} 15... e6 {[%clk 0:01:17.8]} 16. Nxf5 {[%clk 0:02:07]} 16... gxf5
{[%clk 0:01:15.9]} 17. Bf3 {[%clk 0:01:50.1]} 17... Qb6 {[%clk 0:01:15.2]} 18.
c3 {[%clk 0:01:47.6]} 18... Rad8 {[%clk 0:01:12.5]} 19. Qb3 {[%clk 0:01:45.1]}
19... Nxe5 {[%clk 0:01:07.2]} 20. Be2 {[%clk 0:01:44.8]} 20... Ng6 {[%clk
0:00:58.7]} 21. Be3 {[%clk 0:01:42.1]} 21... Ne7 {[%clk 0:00:45.1]} 22. Bg5
{[%clk 0:01:31.3]} 22... Rd7 {[%clk 0:00:40.1]} 23. Rae1 {[%clk 0:01:30.1]}
23... Nd5 {[%clk 0:00:35.4]} 24. Qc2 {[%clk 0:01:30.6]} 24... Rb8 {[%clk
0:00:29.4]} 25. Bc1 {[%clk 0:01:24.6]} 25... Qa5 {[%clk 0:00:23.8]} 26. b4
{[%clk 0:01:18.2]} 26... Qb6 {[%clk 0:00:20.6]} 27. Kh1 {[%clk 0:01:18.4]} 27...
Qc6 {[%clk 0:00:18]} 28. Rf3 {[%clk 0:01:14.6]} 28... Nxb4 {[%clk 0:00:17.5]}
29. Qb3 {[%clk 0:01:09]} 29... Na6 {[%clk 0:00:15.8]} 30. Qc2 {[%clk 0:01:01.9]}
30... Rb6 {[%clk 0:00:15.6]} 31. Bd3 {[%clk 0:01:00.4]} 31... Nb4 {[%clk
0:00:15]} 32. cxb4 {[%clk 0:01:00]} 32... Qxc2 {[%clk 0:00:14.6]} 33. Bxc2
{[%clk 0:01:00.9]} 33... Rxb4 {[%clk 0:00:14.3]} 34. Be3 {[%clk 0:00:53.5]}
34... Bxd4 {[%clk 0:00:13.7]} 35. Bxd4 {[%clk 0:00:53.6]} 35... Rbxd4 {[%clk
0:00:13]} 36. Bb3 {[%clk 0:00:54.2]} 36... Rd2 {[%clk 0:00:12.4]} 37. h3 {[%clk
0:00:52.9]} 37... Kf8 {[%clk 0:00:12.4]} 38. Rc1 {[%clk 0:00:52.9]} 38... a5
{[%clk 0:00:11.3]} 39. Rfc3 {[%clk 0:00:52.7]} 39... Rf2 {[%clk 0:00:09.4]} 40.
R1c2 {[%clk 0:00:43.5]} 40... Rd1+ {[%clk 0:00:08.2]} 41. Kh2 {[%clk 0:00:43.3]}
41... Rxc2 {[%clk 0:00:08]} 42. Rxc2 {[%clk 0:00:42.8]} 42... Rd7 {[%clk
0:00:08.4]} 43. Rc5 {[%clk 0:00:42.4]} 43... Ke7 {[%clk 0:00:08.5]} 44. Rxa5
{[%clk 0:00:42.5]} 44... Rd4 {[%clk 0:00:08.3]} 45. Rb5 {[%clk 0:00:40.7]} 45...
Kd6 {[%clk 0:00:08.2]} 46. a4 {[%clk 0:00:40.8]} 46... c5 {[%clk 0:00:05.4]} 47.
a5 {[%clk 0:00:37.7]} 47... Kc6 {[%clk 0:00:02.5]} 48. Rb6+ {[%clk 0:00:35.9]}
48... Kc7 {[%clk 0:00:03.2]} 49. Rb5 {[%clk 0:00:28.3]} 49... c4 {[%clk
0:00:03.3]} 50. Rc5+ {[%clk 0:00:27.9]} 50... Kb7 {[%clk 0:00:03.6]} 51. Rxc4
{[%clk 0:00:28.8]} 51... Rd3 {[%clk 0:00:03.9]} 52. Ba4 {[%clk 0:00:28.1]} 52...
Ka6 {[%clk 0:00:03.8]} 53. Be8 {[%clk 0:00:27.6]} 53... f6 {[%clk 0:00:03.3]}
54. Rc6+ {[%clk 0:00:27.3]} 54... Kxa5 {[%clk 0:00:04.2]} 55. Rxe6 {[%clk
0:00:28.2]} 55... f4 {[%clk 0:00:03.8]} 56. Rxf6 {[%clk 0:00:28.4]} 56... Rd8
{[%clk 0:00:03.4]} 57. Bh5 {[%clk 0:00:27.6]} 57... Rd4 {[%clk 0:00:02.7]} 58.
Bf3 {[%clk 0:00:26.4]} 58... Kb4 {[%clk 0:00:02.7]} 59. Rf7 {[%clk 0:00:24.9]}
59... h5 {[%clk 0:00:02]} 60. Bxh5 {[%clk 0:00:24.9]} 60... Kc5 {[%clk
0:00:02.3]} 61. Bf3 {[%clk 0:00:25.1]} 61... Kd6 {[%clk 0:00:03]} 62. h4 {[%clk
0:00:24.8]} 62... Ke5 {[%clk 0:00:03.5]} 63. h5 {[%clk 0:00:24.7]} 63... Rd6
{[%clk 0:00:03.9]} 64. Kh3 {[%clk 0:00:24.4]} 64... Ke6 {[%clk 0:00:03.6]} 65.
Rg7 {[%clk 0:00:23.4]} 65... Ke5 {[%clk 0:00:04.5]} 66. Kh4 {[%clk 0:00:23.2]}
66... Rf6 {[%clk 0:00:04.7]} 67. Kg5 {[%clk 0:00:22.4]} 67... Rf8 {[%clk
0:00:04.7]} 68. h6 {[%clk 0:00:22.5]} 68... Rf5+ {[%clk 0:00:05.3]} 69. Kg4
{[%clk 0:00:21.4]} 69... Rf6 {[%clk 0:00:05.2]} 70. h7 {[%clk 0:00:20.6]} 70...
Rh6 {[%clk 0:00:05.2]} 71. Rg5+ {[%clk 0:00:21.2]} 71... Kf6 {[%clk 0:00:05.2]}
72. Rh5 {[%clk 0:00:21.8]} 72... Rxh5 {[%clk 0:00:03.5]} 73. Kxh5 {[%clk
0:00:22.7]} 73... Kg7 {[%clk 0:00:04.2]} 74. Kg5 {[%clk 0:00:22.4]} 74... Kxh7
{[%clk 0:00:04.2]} 75. Kxf4 {[%clk 0:00:23.3]} 75... Kg7 {[%clk 0:00:05.1]} 76.
g4 {[%clk 0:00:24.2]} 76... Kf6 {[%clk 0:00:05.8]} 77. Be4 {[%clk 0:00:25.1]}
77... Kg7 {[%clk 0:00:05.7]} 78. g5 {[%clk 0:00:26]} 1-0

[Event "*** SCC Grand Prix: Titled Tuesday Blitz"]
[Site "Chess.com"]
[Date "2020.07.07"]
[Round "1"]
[White "Chessmasterzt"]
[Black "Varshi_chess"]
[Result "1-0"]
[WhiteElo "2603"]
[BlackElo "2270"]
[TimeControl "180+1"]
[EndTime "10:09:02 PDT"]
[Termination "Chessmasterzt won on time"]

1. d4 {[%clk 0:02:59.3]} 1... d5 {[%clk 0:02:59.2]} 2. Nf3 {[%clk 0:02:52.9]}
2... Nf6 {[%clk 0:02:57.6]} 3. c4 {[%clk 0:02:53.3]} 3... e6 {[%clk 0:02:56.3]}
4. Nc3 {[%clk 0:02:52.5]} 4... Be7 {[%clk 0:02:53.9]} 5. g3 {[%clk 0:02:47.9]}
5... O-O {[%clk 0:02:52.7]} 6. Bg2 {[%clk 0:02:47.5]} 6... b6 {[%clk 0:02:49.5]}
7. cxd5 {[%clk 0:02:43.5]} 7... exd5 {[%clk 0:02:47.1]} 8. O-O {[%clk
0:02:42.3]} 8... Bb7 {[%clk 0:02:42.3]} 9. Qb3 {[%clk 0:02:41.5]} 9... Nbd7
{[%clk 0:02:27.8]} 10. Bf4 {[%clk 0:02:33.6]} 10... c5 {[%clk 0:02:22.6]} 11.
dxc5 {[%clk 0:02:31.1]} 11... Nxc5 {[%clk 0:02:18.8]} 12. Qd1 {[%clk 0:02:31.5]}
12... Rc8 {[%clk 0:02:08.9]} 13. Rc1 {[%clk 0:02:31.7]} 13... Nfe4 {[%clk
0:02:06.3]} 14. Be5 {[%clk 0:02:29.7]} 14... Re8 {[%clk 0:01:53.6]} 15. Bh3
{[%clk 0:02:24.6]} 15... Ra8 {[%clk 0:01:45.5]} 16. Bd4 {[%clk 0:02:09]} 16...
Bf6 {[%clk 0:01:39.4]} 17. Nb5 {[%clk 0:01:55]} 17... a6 {[%clk 0:01:10.9]} 18.
Bxf6 {[%clk 0:01:54.1]} 18... Nxf6 {[%clk 0:01:09.3]} 19. Nbd4 {[%clk
0:01:51.3]} 19... Nfe4 {[%clk 0:01:04.8]} 20. b4 {[%clk 0:01:48.6]} 20... Ne6
{[%clk 0:00:53.8]} 21. Nxe6 {[%clk 0:01:32.8]} 21... fxe6 {[%clk 0:00:53.1]} 22.
Qd4 {[%clk 0:01:28.9]} 22... Rc8 {[%clk 0:00:47.4]} 23. Bg2 {[%clk 0:01:12.8]}
23... Qd6 {[%clk 0:00:43.1]} 24. a3 {[%clk 0:01:09.1]} 24... e5 {[%clk
0:00:38.4]} 25. Rxc8 {[%clk 0:01:06.3]} 25... Bxc8 {[%clk 0:00:36.6]} 26. Qe3
{[%clk 0:01:00.1]} 26... Bb7 {[%clk 0:00:33.6]} 27. Nd2 {[%clk 0:00:55.7]} 27...
Nf6 {[%clk 0:00:21.4]} 28. Nc4 {[%clk 0:00:42.5]} 28... dxc4 {[%clk 0:00:14.7]}
29. Bxb7 {[%clk 0:00:42.6]} 29... b5 {[%clk 0:00:15]} 30. Qc1 {[%clk 0:00:24.9]}
30... Rd8 {[%clk 0:00:15.1]} 31. a4 {[%clk 0:00:23.5]} 31... h6 {[%clk
0:00:15.1]} 32. axb5 {[%clk 0:00:21.8]} 32... axb5 {[%clk 0:00:16]} 33. Qb2
{[%clk 0:00:21.3]} 33... e4 {[%clk 0:00:14.8]} 34. Ra1 {[%clk 0:00:18.5]} 34...
Qd4 {[%clk 0:00:13.8]} 35. Qxd4 {[%clk 0:00:18.1]} 35... Rxd4 {[%clk 0:00:14.4]}
36. Ra5 {[%clk 0:00:17.2]} 36... c3 {[%clk 0:00:14.4]} 37. Ra2 {[%clk
0:00:15.3]} 37... Rxb4 {[%clk 0:00:13]} 38. Rc2 {[%clk 0:00:14.3]} 38... Rc4
{[%clk 0:00:13.1]} 39. Ba6 {[%clk 0:00:14.8]} 39... Rc5 {[%clk 0:00:12.7]} 40.
Bxb5 {[%clk 0:00:13.6]} 40... Rxb5 {[%clk 0:00:12.3]} 41. Rxc3 {[%clk
0:00:14.2]} 41... Kf7 {[%clk 0:00:11.6]} 42. Kg2 {[%clk 0:00:14.6]} 42... Ke6
{[%clk 0:00:10.8]} 43. h3 {[%clk 0:00:15]} 43... Rb7 {[%clk 0:00:10.3]} 44. Rc6+
{[%clk 0:00:14.6]} 44... Ke5 {[%clk 0:00:09.9]} 45. Ra6 {[%clk 0:00:15.5]} 45...
Nd5 {[%clk 0:00:09.8]} 46. Rg6 {[%clk 0:00:15.1]} 46... e3 {[%clk 0:00:09.2]}
47. f4+ {[%clk 0:00:14.3]} 47... Kd4 {[%clk 0:00:08.7]} 48. Re6 {[%clk
0:00:13.9]} 48... Kc3 {[%clk 0:00:08]} 49. Kf3 {[%clk 0:00:14.1]} 49... Kd2
{[%clk 0:00:07.2]} 50. Rd6 {[%clk 0:00:14.5]} 50... Rb5 {[%clk 0:00:05.9]} 51.
Rd7 {[%clk 0:00:14.8]} 51... Rc5 {[%clk 0:00:06]} 52. Rxg7 {[%clk 0:00:13.6]}
52... Ke1 {[%clk 0:00:06]} 53. g4 {[%clk 0:00:12.7]} 53... Rc4 {[%clk
0:00:05.8]} 54. Rd7 {[%clk 0:00:12]} 54... Rxf4+ {[%clk 0:00:05.5]} 55. Kg2
{[%clk 0:00:12.2]} 55... Rf2+ {[%clk 0:00:05.3]} 56. Kg3 {[%clk 0:00:12.4]}
56... Nc3 {[%clk 0:00:05.3]} 57. Re7 {[%clk 0:00:09.6]} 57... Kxe2 {[%clk
0:00:04.5]} 58. h4 {[%clk 0:00:08.3]} 58... Nd5 {[%clk 0:00:04.5]} 59. Re5
{[%clk 0:00:07.4]} 59... Nf4 {[%clk 0:00:05.1]} 60. g5 {[%clk 0:00:07.7]} 60...
hxg5 {[%clk 0:00:04.2]} 61. hxg5 {[%clk 0:00:08.6]} 61... Nh5+ {[%clk
0:00:04.6]} 62. Kg4 {[%clk 0:00:08.3]} 62... Nf4 {[%clk 0:00:05.1]} 63. Re7
{[%clk 0:00:04.9]} 63... Nd3 {[%clk 0:00:04.9]} 64. g6 {[%clk 0:00:04.1]} 64...
Rg2+ {[%clk 0:00:05.1]} 65. Kf5 {[%clk 0:00:04.1]} 65... Kf2 {[%clk 0:00:04.1]}
66. g7 {[%clk 0:00:03.5]} 66... e2 {[%clk 0:00:04.3]} 67. Kf6 {[%clk 0:00:04]}
67... e1=Q {[%clk 0:00:02.6]} 68. Rxe1 {[%clk 0:00:04.4]} 68... Kxe1 {[%clk
0:00:02.2]} 69. g8=Q {[%clk 0:00:04.5]} 1-0

[Event "*** SCC Grand Prix: Titled Tuesday Blitz"]
[Site "Chess.com"]
[Date "2020.07.07"]
[Round "1"]
[White "Aguiar94"]
[Black "ApoIogiA"]
[Result "1-0"]
[WhiteElo "2511"]
[BlackElo "2119"]
[TimeControl "180+1"]
[EndTime "10:09:07 PDT"]
[Termination "Aguiar94 won by resignation"]

1. e4 {[%clk 0:02:57.5]} 1... c5 {[%clk 0:02:59.5]} 2. Nf3 {[%clk 0:02:56.9]}
2... d6 {[%clk 0:02:59.5]} 3. d4 {[%clk 0:02:56.4]} 3... cxd4 {[%clk 0:03:00.4]}
4. Qxd4 {[%clk 0:02:57.1]} 4... Nf6 {[%clk 0:03:01.3]} 5. e5 {[%clk 0:02:56.5]}
5... Nc6 {[%clk 0:02:58.4]} 6. Bb5 {[%clk 0:02:54.4]} 6... Qa5+ {[%clk
0:02:27.7]} 7. Nc3 {[%clk 0:02:51.1]} 7... dxe5 {[%clk 0:02:20.4]} 8. Bxc6+
{[%clk 0:02:48.4]} 8... bxc6 {[%clk 0:02:18.9]} 9. Nxe5 {[%clk 0:02:48.6]} 9...
Bb7 {[%clk 0:02:08.2]} 10. O-O {[%clk 0:02:46.7]} 10... Rd8 {[%clk 0:02:05.2]}
11. Qc4 {[%clk 0:02:44.1]} 11... Qxe5 {[%clk 0:01:59.5]} 12. Be3 {[%clk
0:02:42.1]} 12... e6 {[%clk 0:01:55.8]} 13. Bxa7 {[%clk 0:02:38.2]} 13... Bd6
{[%clk 0:01:50.5]} 14. g3 {[%clk 0:02:34.6]} 14... O-O {[%clk 0:01:43.9]} 15.
Bd4 {[%clk 0:01:08.5]} 15... Qf5 {[%clk 0:01:35.3]} 16. f4 {[%clk 0:01:06.5]}
16... c5 {[%clk 0:01:28.2]} 17. Bxf6 {[%clk 0:00:56.2]} 17... Qxf6 {[%clk
0:01:26.2]} 18. Rad1 {[%clk 0:00:54.6]} 18... Be7 {[%clk 0:01:22.6]} 19. Qb5
{[%clk 0:00:50.5]} 19... Ba8 {[%clk 0:01:09.3]} 20. Na4 {[%clk 0:00:24.2]} 20...
Qg6 {[%clk 0:00:54.6]} 21. Qe2 {[%clk 0:00:16.4]} 21... Qe4 {[%clk 0:00:51.7]}
22. Qxe4 {[%clk 0:00:16]} 22... Bxe4 {[%clk 0:00:52.6]} 23. Rc1 {[%clk
0:00:11.3]} 23... Rd2 {[%clk 0:00:51.6]} 24. Rf2 {[%clk 0:00:11.8]} 24... Rfd8
{[%clk 0:00:47.5]} 25. Nc3 {[%clk 0:00:12.2]} 25... Bxc2 {[%clk 0:00:37.5]} 26.
Rxc2 {[%clk 0:00:10.8]} 26... Rxf2 {[%clk 0:00:30.7]} 27. Kxf2 {[%clk
0:00:11.3]} 27... Bf6 {[%clk 0:00:31.1]} 28. Ne4 {[%clk 0:00:10.3]} 28... Bd4+
{[%clk 0:00:29.6]} 29. Ke2 {[%clk 0:00:10.7]} 29... Rb8 {[%clk 0:00:27.5]} 30.
b3 {[%clk 0:00:10.1]} 30... Ra8 {[%clk 0:00:25.5]} 31. Kd3 {[%clk 0:00:08.9]}
31... Kf8 {[%clk 0:00:25.6]} 32. Kc4 {[%clk 0:00:09.1]} 32... Ke7 {[%clk
0:00:25]} 33. Rd2 {[%clk 0:00:08.7]} 33... Ra5 {[%clk 0:00:20.5]} 34. Nc3 {[%clk
0:00:07.3]} 34... h5 {[%clk 0:00:17.5]} 35. Nb5 {[%clk 0:00:06.9]} 35... Be3
{[%clk 0:00:14.9]} 36. Rd3 {[%clk 0:00:05.9]} 36... Bg1 {[%clk 0:00:14.8]} 37.
Rd2 {[%clk 0:00:05.6]} 37... Be3 {[%clk 0:00:14.2]} 38. Re2 {[%clk 0:00:05]}
38... Bg1 {[%clk 0:00:13.8]} 39. a4 {[%clk 0:00:05]} 39... Ra8 {[%clk
0:00:12.8]} 40. Rd2 {[%clk 0:00:05.1]} 40... Be3 {[%clk 0:00:12.5]} 41. Re2
{[%clk 0:00:05.4]} 41... Bg1 {[%clk 0:00:12.7]} 42. h3 {[%clk 0:00:06.3]} 42...
Rc8 {[%clk 0:00:11.9]} 43. Rg2 {[%clk 0:00:07.2]} 43... Be3 {[%clk 0:00:11.3]}
44. Re2 {[%clk 0:00:07.3]} 44... Bg1 {[%clk 0:00:11.4]} 45. g4 {[%clk
0:00:07.7]} 45... hxg4 {[%clk 0:00:11.2]} 46. hxg4 {[%clk 0:00:08.6]} 46... Kf6
{[%clk 0:00:12]} 47. Nd6 {[%clk 0:00:07.2]} 47... Rc6 {[%clk 0:00:11.6]} 48.
Ne4+ {[%clk 0:00:08.1]} 48... Ke7 {[%clk 0:00:11.5]} 49. Rd2 {[%clk 0:00:08.2]}
49... Bd4 {[%clk 0:00:11.6]} 50. Rd3 {[%clk 0:00:08.3]} 50... f5 {[%clk
0:00:11.7]} 51. gxf5 {[%clk 0:00:07.9]} 51... exf5 {[%clk 0:00:12.2]} 52. Ng5
{[%clk 0:00:08.8]} 52... Kf6 {[%clk 0:00:12.5]} 53. Rh3 {[%clk 0:00:08.4]} 53...
g6 {[%clk 0:00:12]} 54. Rh8 {[%clk 0:00:09.3]} 54... Kg7 {[%clk 0:00:10.9]} 55.
Rh7+ {[%clk 0:00:09.3]} 55... Kg8 {[%clk 0:00:10.9]} 56. Rf7 {[%clk 0:00:10.2]}
56... Rd6 {[%clk 0:00:10.1]} 57. Rc7 {[%clk 0:00:09.8]} 57... Rb6 {[%clk
0:00:10.5]} 58. a5 {[%clk 0:00:10.3]} 58... Rb4+ {[%clk 0:00:10.6]} 59. Kd5
{[%clk 0:00:10.8]} 59... Rxb3 {[%clk 0:00:11.1]} 60. a6 {[%clk 0:00:11.7]} 60...
Ra3 {[%clk 0:00:11.3]} 61. a7 {[%clk 0:00:12]} 61... Be3 {[%clk 0:00:11.2]} 62.
Rc8+ {[%clk 0:00:12.9]} 62... Kg7 {[%clk 0:00:10.5]} 63. a8=Q {[%clk 0:00:13.8]}
63... Rxa8 {[%clk 0:00:10.9]} 64. Rxa8 {[%clk 0:00:14.7]} 64... Kf6 {[%clk
0:00:10.5]} 65. Ne6 {[%clk 0:00:15.6]} 65... c4 {[%clk 0:00:09.8]} 66. Rf8+
{[%clk 0:00:15.5]} 66... Ke7 {[%clk 0:00:09.5]} 67. Rc8 {[%clk 0:00:16.4]} 67...
g5 {[%clk 0:00:09]} 68. Rxc4 {[%clk 0:00:16.3]} 68... gxf4 {[%clk 0:00:08.8]}
69. Nxf4 {[%clk 0:00:17.2]} 69... Kf6 {[%clk 0:00:08.9]} 70. Ne6 {[%clk
0:00:16.9]} 70... f4 {[%clk 0:00:08.5]} 71. Nxf4 {[%clk 0:00:16.2]} 71... Kf5
{[%clk 0:00:08.6]} 72. Ne6 {[%clk 0:00:17.1]} 72... Bh6 {[%clk 0:00:08.1]} 73.
Re4 {[%clk 0:00:17.3]} 73... Bd2 {[%clk 0:00:08]} 74. Re2 {[%clk 0:00:17.4]}
74... Bc1 {[%clk 0:00:07.4]} 75. Rf2+ {[%clk 0:00:17.6]} 75... Kg4 {[%clk
0:00:08]} 76. Ke4 {[%clk 0:00:17.9]} 76... Kg3 {[%clk 0:00:07.9]} 77. Rf7 {[%clk
0:00:18.2]} 77... Kg2 {[%clk 0:00:08]} 78. Rg7+ {[%clk 0:00:18.2]} 1-0